[Event "Czech Championship 2022"]
[Site "Usti nad Labem"]
[Date "2022.05.18"]
[Round "5.13"]
[White "Krivanek, Vladimir"]
[Black "Serrano Salvador, Eduardo"]
[Result "1-0"]
[ECO "A36"]
[WhiteElo "2180"]
[BlackElo "2286"]
[Annotator "TA"]
[PlyCount "120"]
[EventDate "2022.05.12"]
[EventType "swiss"]
[EventCountry "CZE"]
[SourceTitle "playchess.com"]
[Source "ChessBase"]
[SourceQuality "1"]
[TimeControl "40/5400+30:1800+30"]

{[%evp 16,120,0,-5,26,25,29,8,20,-5,9,-18,18,22,14,13,82,81,97,105,93,31,45,0,63,46,56,49,69,39,104,81,91,82,100,94,106,106,127,10,8,10,25,24,9,0,22,0,93,87,92,96,111,0,0,0,0,0,0,0,0,-62,-54,-49,-41,-49,0,0,147,144,235,229,258,240,1456,987,1331,1316,606,592,1233,1180,1080,1010,1469,1423,2169,2056,1700,1179,29968,29970,29968,29970,29972,29974,29980,29981,29975,29974,29974,29975,29974,29975,29978,29979,29982]} 1. c4 {[%emt 0:00:09]} Nf6 {[%emt 0:01:50]} 2. Nc3 {[%emt 0:01:23]} d6 {[%emt 0:00:35]} 3. g3 {[%emt 0:01:28]} g6 {[%emt 0:00:46]} 4. Bg2 {[%emt 0:00:46]} Bg7 {[%emt 0:00:10]} 5. d3 {[%emt 0:00:48]} O-O {[%emt 0:00:47]} 6. e4 {[%emt 0:00:34]} c5 {[%emt 0:01:26]} 7. Nge2 {[%emt 0:00:49]} Nc6 {[%emt 0:01:24]} 8. O-O {[%emt 0:02:21]} a6 {[%emt 0:02:48]} 9. h3 {[%emt 0:02:03]} Ne8 {[%emt 0:03:27] A36: Symmetrical English vs ...g6: 4 Bg2 Bg7.} 10. Be3 {[%emt 0:03:49]} Nc7 {[%emt 0:01:31] was the old line (10...Nd4).} 11. Qd2 {[%emt 0:01:44]} Nd4 {[%emt 0:05:00] The position is equal.} 12. Kh2 {[%emt 0:06:10]} Rb8 {[%emt 0:09:18]} (12... b5 {with more complications.} 13. Bh6 Bxh6 14. Qxh6 Rb8) 13. Bh6 {[%emt 0:04:02] [#]} Nce6 $146 {[%emt 0:00:59]} (13... Bxh6 {is interesting.} 14. Qxh6 b5 15. b3 e5) ({Predecessor:} 13... e5 14. Bxg7 Kxg7 15. Nxd4 cxd4 16. Ne2 Ne6 17. f4 f6 18. f5 Nc5 19. Rab1 a5 20. b3 {½-½ (20) Wendland,J-Bennedik,M (2035) Hessen 1999}) 14. Bxg7 {[%emt 0:03:11]} Kxg7 {[%emt 0:00:14]} 15. f4 {[%emt 0:02:15]} f5 {[%emt 0:04:49]} (15... Nc6 $11) 16. Rae1 $16 {[%emt 0:03:38]} b5 {[%emt 0:04:44]} 17. exf5 {[%emt 0:08:39]} gxf5 {[%emt 0:00:12]} 18. Nd5 {[%emt 0:01:08]} (18. Nxd4 $16 Nxd4 19. Ne2) 18... Rf7 $14 {[%emt 0:01:41]} 19. Ng1 {[%emt 0:06:37]} Nf8 {[%emt 0:08:36]} (19... Kh8 $11) 20. b3 {[%emt 0:02:11] White is more active.} e6 {[%emt 0:00:48]} 21. Ne3 {[%emt 0:02:14]} Bb7 {[%emt 0:01:31]} 22. Rf2 {[%emt 0:05:21]} b4 {[%emt 0:04:45]} (22... Qf6 $14) 23. Nc2 {[%emt 0:03:08]} Nxc2 {[%emt 0:01:01]} 24. Qxc2 {[%emt 0:00:07][%cal Od3d4]} Qf6 {[%emt 0:00:58]} 25. Bxb7 {[%emt 0:01:49]} Rfxb7 {[%emt 0:00:47]} 26. Nf3 {[%emt 0:01:42]} Re7 {[%emt 0:01:19]} 27. Rfe2 {[%emt 0:09:05]} (27. d4 $16) 27... Rbe8 $11 {[%emt 0:00:46]} 28. Qd2 {[%emt 0:15:32] Black should prevent d4.} e5 {[%emt 0:00:26] Prevents d4.} 29. fxe5 {[%emt 0:02:02]} dxe5 {[%emt 0:00:08]} 30. Qe3 {[%emt 0:00:15]} Nd7 {[%emt 0:00:47][%cal Bf8d7,Bd7e5,Be5f3][%mdl 32]} (30... e4 $5 31. dxe4 (31. Qxc5 $2 Ne6 $19) 31... Rxe4 $11) 31. d4 {[%emt 0:05:58]} e4 {[%emt 0:00:25]} (31... cxd4 $11 {keeps the balance.} 32. Nxd4 f4 33. gxf4 exd4 34. Qxe7+ Rxe7 35. Rxe7+ Kf8 36. Rxd7 Qxf4+ 37. Kg2 Qg5+ 38. Kh1 Qh4) 32. Nh4 $1 $16 {[%emt 0:00:50]} ({Wrong is} 32. dxc5 $2 exf3 33. Qxf3 (33. Qxe7+ $2 Rxe7 34. Rxe7+ Kg8 $19) 33... Rxe2+ 34. Rxe2 Rxe2+ 35. Qxe2 Nxc5 $19) 32... cxd4 {[%emt 0:07:05] [#]} 33. Qxd4 {[%emt 0:00:13]} Ne5 {[%emt 0:01:01]} 34. Rf1 {[%emt 0:00:57]} ({White should try} 34. Rf2 $1 $16 Nf3+ 35. Nxf3 exf3 36. Rxe7+ Rxe7 37. Qf4) 34... Nf3+ $1 $11 {[%emt 0:05:09]} (34... Rd7 $2 35. Qe3 $18) 35. Nxf3 {[%emt 0:00:20]} exf3 {[%emt 0:00:07]} 36. Rxe7+ {[%emt 0:01:11]} Rxe7 {[%emt 0:00:05]} 37. Qxf6+ {[%emt 0:00:18]} Kxf6 {[%emt 0:00:04]} 38. Rxf3 {[%emt 0:00:20][%mdl 4096] Endgame KR-KR} (38. Kg1 $11) 38... Re2+ $15 {[%emt 0:00:16]} 39. Kg1 {[%emt 0:00:04]} Rxa2 {[%emt 0:00:19] aiming for ...Ke5.} 40. g4 {[%emt 0:02:18][%cal Bg3g4,Bg4f5,Bf5f6][%mdl 32]} Ra5 {[%emt 0:00:52]} (40... f4 $15 {should be considered.} 41. Rxf4+ Ke5 42. Rf5+ Ke4) 41. Kf2 {[%emt 0:32:56] Threatens to win with Ke3.} Ra2+ {[%emt 0:32:26] Black is now going downhill.} (41... Re5 $11) 42. Ke3 $16 {[%emt 0:00:00]} a5 {[%emt 0:00:00] [#]} (42... f4+ $16 43. Rxf4+ Ke7) 43. Kd4 $1 $18 {[%emt 0:00:00]} (43. Rxf5+ Ke6 $16) ({Worse is} 43. gxf5 a4 44. Kd4 a3 $15) 43... Ke7 {[%emt 0:00:00]} 44. gxf5 {[%emt 0:00:00]} ({Less strong is} 44. Rxf5 Rd2+ 45. Kc5 Rd3 $16) 44... Ra3 $2 {[%emt 0:00:00]} (44... Rd2+ 45. Rd3 Rc2) 45. f6+ {[%emt 0:00:00]} Kf7 {[%emt 0:00:00] [#]} 46. Kc5 $1 {[%emt 0:00:00]} Ra1 {[%emt 0:00:00]} 47. Kb5 {[%emt 0:00:00] Black must now prevent c5.} Rc1 {[%emt 0:00:00]} 48. Rf5 {[%emt 0:00:00]} Rc3 {[%emt 0:00:00]} 49. Ka4 {[%emt 0:00:00]} Rxh3 {[%emt 0:00:00]} 50. Rxa5 {[%emt 0:00:00]} Kxf6 {[%emt 0:00:00]} 51. Kxb4 {[%emt 0:00:00]} Ke6 {[%emt 0:00:00]} 52. Rd5 {[%emt 0:00:00]} Rg3 {[%emt 0:00:00]} 53. Rh5 {[%emt 0:00:00] White mates.} Rg7 {[%emt 0:00:00]} 54. c5 {[%emt 0:00:00]} Kd7 {[%emt 0:00:00]} 55. Kb5 {[%emt 0:00:00]} Kc7 {[%emt 0:00:00]} 56. b4 {[%emt 0:00:00]} Rf7 {[%emt 0:00:00]} 57. Ka6 {[%emt 0:00:00]} Rf6+ {[%emt 0:00:00]} 58. Ka7 {[%emt 0:01:42]} Kc6 {[%emt 0:00:00]} 59. Rxh7 {[%emt 0:00:15]} Rf1 {[%emt 0:00:00]} 60. Rh6+ {[%emt 0:00:27]} Kd5 {[%emt 0:00:00] Weighted Error Value: White=0.15 (very precise) /Black=0.35} 1-0

[Event "Czech Championship 2022"]
[Site "Usti nad Labem"]
[Date "2022.05.18"]
[Round "5.14"]
[White "Delgerdalai, Bayarjavkhlan"]
[Black "Sykora, Marek"]
[Result "1/2-1/2"]
[ECO "C41"]
[WhiteElo "2119"]
[BlackElo "2249"]
[Annotator "TA"]
[PlyCount "104"]
[EventDate "2022.05.12"]
[EventType "swiss"]
[EventCountry "CZE"]
[SourceTitle "playchess.com"]
[Source "ChessBase"]
[SourceQuality "1"]
[TimeControl "40/5400+30:1800+30"]

{[%evp 18,104,43,36,59,6,8,7,33,-16,-1,-17,-23,-23,-18,-14,-6,-16,-6,-82,-61,-61,-12,-8,-8,-16,-14,-49,-40,-35,-53,-89,-81,-162,-66,-128,-124,-128,-73,-130,-78,-83,-64,-69,-72,-82,-68,-86,-83,-86,-62,-60,-60,-91,-91,-124,-127,-112,-91,-91,-91,-91,-91,-91,-43,-44,-44,-79,-45,-45,-45,-45,-45,-45,-45,-51,-38,-38,-38,-38,-38,-38,-38,-38,-38,-38,-8,-8,-8]} 1. e4 {[%emt 0:00:05]} d6 {[%emt 0:00:17]} 2. d4 {[%emt 0:00:22]} Nf6 {[%emt 0:01:12]} 3. Nc3 {[%emt 0:00:12]} e5 {[%emt 0:01:03]} 4. Nf3 {[%emt 0:00:41]} Nbd7 {[%emt 0:00:32]} 5. Bc4 {[%emt 0:00:35]} Be7 {[%emt 0:00:33]} 6. O-O {[%emt 0:21:58]} O-O {[%emt 0:01:29]} 7. Re1 {[%emt 0:00:40]} c6 {[%emt 0:00:24]} 8. a4 {[%emt 0:01:14]} a5 {[%emt 0:00:35]} 9. h3 {[%emt 0:01:05]} Qc7 {[%emt 0:01:01]} 10. Be3 {[%emt 0:02:49]} b6 {[%emt 0:12:04] C41: Philidor Defence.} 11. dxe5 {[%emt 0:04:42]} ({White should try} 11. Ba2 $14) 11... dxe5 $11 {[%emt 0:02:11]} 12. Nh4 {[%emt 0:02:18] [#]} g6 $146 {[%emt 0:08:28][%cal Bg7g6,Bg6f5,Bf5f4][%mdl 32]} ({Predecessor:} 12... Nc5 13. Nf5 Bxf5 14. exf5 Rad8 15. Qe2 Nd5 16. Bxc5 Bxc5 17. Bxd5 cxd5 18. Qxe5 Qc6 {½-½ (38) Kalashian,D (2398)-Seo,J (2453) Chess.com INT 2021}) 13. Qf3 {[%emt 0:01:14]} (13. Bh6 $14) 13... Nh5 {[%emt 0:09:16]} 14. Nf5 {[%emt 0:03:38]} gxf5 {[%emt 0:02:58]} 15. Qxh5 {[%emt 0:01:19] [#] Black must now prevent Bh6.} f4 $1 {[%emt 0:00:13]} 16. Bd2 {[%emt 0:01:10]} Qd6 {[%emt 0:09:47]} 17. Rad1 {[%emt 0:01:07][%cal Od2f4]} Qg6 {[%emt 0:00:29]} 18. Qf3 {[%emt 0:01:08]} (18. Qxg6+ $11 hxg6 19. g3) 18... Nc5 $17 {[%emt 0:01:48]} 19. Kh2 {[%emt 0:06:50]} Ne6 {[%emt 0:05:27]} (19... Qh6 $15 {is superior.}) 20. Bxe6 $11 {[%emt 0:01:27]} Bxe6 {[%emt 0:02:41]} 21. g3 $1 {[%emt 0:11:02]} fxg3+ $1 {[%emt 0:00:49]} 22. Qxg3 {[%emt 0:01:24]} Qxg3+ {[%emt 0:03:43]} 23. Kxg3 {[%emt 0:02:37]} f5 {[%emt 0:06:42]} 24. exf5 {[%emt 0:04:52]} Rxf5 {[%emt 0:01:54]} 25. Be3 {[%emt 0:08:39] [#]} (25. Ne4 $17) 25... Rh5 {[%emt 0:07:03]} (25... Kf7 $1 $19 {Threatens to win with ...Rg8+.} 26. Rg1 Rh5) 26. Rh1 {[%emt 0:05:33]} ({White should play} 26. Bxb6 $15 Kf7 27. Rd3) 26... Kf7 $17 {[%emt 0:02:23]} 27. Kf3 {[%emt 0:04:12]} Rb8 {[%emt 0:06:07]} ({Not} 27... Rxh3+ 28. Rxh3 Bxh3 29. Bxb6 $15) (27... Rh4 $142 28. Ke2 Bf5) 28. Ke2 {[%emt 0:04:39]} (28. h4 $142) 28... Rxh3 {[%emt 0:00:43]} (28... Bf5 $142 29. Kd2 Rxh3 30. Rxh3 Bxh3) 29. Rxh3 {[%emt 0:01:34]} Bxh3 {[%emt 0:00:06] A strong pair of Bishops.} 30. Ne4 {[%emt 0:02:21]} b5 {[%emt 0:03:26]} 31. axb5 {[%emt 0:00:53]} cxb5 {[%emt 0:01:43]} 32. Ng5+ {[%emt 0:01:13]} Bxg5 {[%emt 0:00:06]} 33. Bxg5 {[%emt 0:00:04][%mdl 4096] Endgame KRB-KRB} Bf5 {[%emt 0:01:51]} 34. c3 {[%emt 0:00:51]} Ke6 {[%emt 0:00:40]} 35. Be3 {[%emt 0:01:01]} Rc8 {[%emt 0:03:19]} 36. Rg1 {[%emt 0:01:35]} h5 {[%emt 0:01:33]} 37. Rh1 {[%emt 0:01:08]} Rh8 {[%emt 0:01:57]} 38. Rh4 {[%emt 0:00:20]} a4 {[%emt 0:00:49]} 39. f3 {[%emt 0:00:29]} Kd5 {[%emt 0:01:08]} 40. Bf2 {[%emt 0:00:44]} e4 {[%emt 0:01:15]} (40... Bd7 $17) 41. fxe4+ $15 {[%emt 0:01:39]} Bxe4 {[%emt 0:00:22]} 42. Ke3 {[%emt 0:01:30]} Bf5 {[%emt 0:00:45]} 43. c4+ {[%emt 0:07:09]} bxc4 {[%emt 0:03:20]} 44. Rd4+ {[%emt 0:00:07]} Kc6 {[%emt 0:01:57]} 45. Rxc4+ {[%emt 0:00:16]} Kb5 {[%emt 0:00:03]} 46. Rd4 {[%emt 0:00:44]} Bg4 {[%emt 0:01:09]} 47. Be1 {[%emt 0:02:15]} Re8+ {[%emt 0:04:04]} 48. Re4 {[%emt 0:00:48]} Rxe4+ {[%emt 0:00:35]} 49. Kxe4 {[%emt 0:00:06]} Kc4 {[%emt 0:00:03] ( -> ...Kb3)} 50. Bh4 {[%emt 0:00:11]} Kb3 {[%emt 0:00:06]} 51. Bf6 {[%emt 0:00:07]} a3 {[%emt 0:00:10]} 52. bxa3 {[%emt 0:00:05]} Kxa3 {[%emt 0:00:02] Weighted Error Value: White=0.16 (very precise) /Black=0.13 (very precise)} 1/2-1/2

[Event "Czech Championship 2022"]
[Site "Usti nad Labem"]
[Date "2022.05.18"]
[Round "5.15"]
[White "Bouska, Jiri"]
[Black "Freisler, Pavel"]
[Result "1-0"]
[ECO "C78"]
[WhiteElo "2117"]
[BlackElo "2239"]
[Annotator "TA"]
[PlyCount "69"]
[EventDate "2022.05.12"]
[EventType "swiss"]
[EventCountry "CZE"]
[SourceTitle "playchess.com"]
[Source "ChessBase"]
[SourceQuality "1"]
[TimeControl "40/5400+30:1800+30"]

{[%evp 11,69,0,10,0,7,12,10,17,12,11,14,3,11,23,32,31,27,15,66,64,70,62,68,18,474,477,472,466,459,457,457,452,842,834,888,730,714,706,664,660,925,917,916,912,1504,1590,5214,5194,5010,5102,2527,2195,5110,5102,2455,1875,29995,29996,29997,29998]} 1. e4 {[%emt 0:00:03]} e5 {[%emt 0:01:36]} 2. Nf3 {[%emt 0:00:09]} Nc6 {[%emt 0:00:10]} 3. Bb5 {[%emt 0:00:06]} a6 {[%emt 0:01:33]} 4. Ba4 {[%emt 0:00:07]} Nf6 {[%emt 0:00:41]} 5. d3 {[%emt 0:00:07]} Bc5 {[%emt 0:06:06]} 6. O-O {[%emt 0:00:52]} d6 {[%emt 0:00:07]} 7. h3 {[%emt 0:00:33] C78: Ruy Lopez: Archangelsk and Möller Defences.} O-O {[%emt 0:05:06]} 8. c3 {[%emt 0:04:16]} Ba7 {[%emt 0:04:17]} (8... b5 $5 {[%cal Rb5a4]} 9. Bc2 a5 $11) 9. Nbd2 {[%emt 0:01:54] The position is equal.} Ne7 {[%emt 0:03:28]} 10. Re1 {[%emt 0:01:24]} Ng6 {[%emt 0:00:36]} 11. Nf1 {[%emt 0:00:24]} c6 {[%emt 0:02:52] 11...c6 has lost popularity.} 12. Ng3 {[%emt 0:01:10]} Re8 {[%emt 0:10:37]} 13. d4 {[%emt 0:04:09]} h6 {[%emt 0:02:45]} 14. Be3 {[%emt 0:10:41]} Qc7 {[%emt 0:08:57] [#]} (14... exd4 $11 15. Bxd4 Be6) 15. Qd2 $146 {[%emt 0:05:45][%cal Oe3h6]} ({Predecessor:} 15. Bc2 Be6 16. Qd2 Rad8 17. Rad1 Qa5 18. a4 exd4 19. Nxd4 Bxd4 20. Bxd4 Qg5 21. Qxg5 hxg5 22. Bxf6 gxf6 {1-0 (53) Titus,A (2158)-Sazci,B (1769) Chess.com INT 2021}) 15... Kh7 {[%emt 0:29:51]} 16. Bc2 {[%emt 0:02:02]} c5 {[%emt 0:02:16]} 17. Nf5 {[%emt 0:01:34]} (17. a4 $14) 17... exd4 $2 {[%emt 0:01:54][%mdl 8192] [#] This move loses the game for Black.} (17... Bxf5 $11 {and Black has nothing to worry.} 18. exf5 Ne7) 18. Bxh6 $1 $18 {[%emt 0:03:46][%mdl 512]} Bxf5 {[%emt 0:08:56]} (18... dxc3 19. bxc3) 19. exf5 {[%emt 0:01:02]} gxh6 {[%emt 0:01:48]} 20. fxg6+ {[%emt 0:00:41]} fxg6 {[%emt 0:01:11]} 21. Nh4 {[%emt 0:05:37][%cal Bf3h4,Bh4g6,Bg6h8][%mdl 32]} Rxe1+ {[%emt 0:02:01]} (21... Rg8 $142 22. Qf4 Qf7 23. Qxd6 Rae8 24. cxd4 Rg7 25. dxc5 Bb8) 22. Rxe1 {[%emt 0:00:36]} Rg8 {[%emt 0:00:01]} 23. Re6 {[%emt 0:01:23]} Qf7 {[%emt 0:00:26]} 24. Qe2 {[%emt 0:01:03] Re7 is the strong threat.} Kh8 {[%emt 0:03:43]} 25. Re7 {[%emt 0:01:20]} Re8 {[%emt 0:00:11]} 26. Nxg6+ {[%emt 0:04:21]} Kg8 {[%emt 0:00:03]} 27. Bb3 {[%emt 0:00:48]} d5 {[%emt 0:01:30] [#]} 28. Bxd5 $1 {[%emt 0:00:15][%mdl 512]} Nxd5 {[%emt 0:00:25]} 29. Rxe8+ {[%emt 0:00:06]} Kg7 {[%emt 0:00:02]} 30. Nh8 {[%emt 0:01:26] Threatening mate with Qg4+.} Qf5 {[%emt 0:01:00]} 31. c4 {[%emt 0:02:10]} d3 {[%emt 0:00:06]} 32. Qe1 {[%emt 0:00:39]} d2 {[%emt 0:01:13]} 33. Qxd2 {[%emt 0:00:14]} Nf6 {[%emt 0:00:06]} 34. Re7+ {[%emt 0:00:48]} Kxh8 {[%emt 0:00:12]} 35. Qxh6+ {[%emt 0:00:05] Weighted Error Value: White=0.05 (flawless) /Black=0.72} 1-0

[Event "Czech Championship 2022"]
[Site "Usti nad Labem"]
[Date "2022.05.18"]
[Round "5.16"]
[White "Nytra, Ondrej"]
[Black "Paseka, Matyas"]
[Result "1/2-1/2"]
[ECO "B92"]
[WhiteElo "2219"]
[BlackElo "2076"]
[Annotator "TA"]
[PlyCount "112"]
[EventDate "2022.05.12"]
[EventType "swiss"]
[EventCountry "CZE"]
[SourceTitle "playchess.com"]
[Source "ChessBase"]
[SourceQuality "1"]
[TimeControl "40/5400+30:1800+30"]

{[%evp 15,112,0,0,-3,12,6,38,36,58,6,6,-30,-25,-25,-18,-41,-41,-36,-39,-52,-49,-51,-37,-47,-56,-60,-16,-27,-29,-27,0,0,0,0,32,16,26,18,22,22,20,0,0,-8,0,0,0,0,0,0,0,-8,-8,-8,0,0,0,0,0,0,0,0,0,0,0,0,0,0,0,-70,0,0,0,0,0,0,0,0,0,0,0,0,0,0,0,0,0,0,0,0,0,0,0,0,0,-93,-93,-93,0]} 1. e4 {[%emt 0:00:11]} c5 {[%emt 0:00:08]} 2. Nf3 {[%emt 0:00:02]} d6 {[%emt 0:00:07]} 3. d4 {[%emt 0:00:02]} cxd4 {[%emt 0:00:07]} 4. Nxd4 {[%emt 0:00:02]} Nf6 {[%emt 0:00:08]} 5. Nc3 {[%emt 0:00:02]} a6 {[%emt 0:00:07]} 6. Be2 {[%emt 0:00:01]} e5 {[%emt 0:00:08]} 7. Nf3 {[%emt 0:00:03][%cal Bd4f3,Bf3d2,Bd2c4,Bc4e3,Be3f5][%mdl 32]} Be7 {[%emt 0:01:58]} 8. Bg5 {[%emt 0:00:25]} Nbd7 {[%emt 0:00:21]} 9. O-O {[%emt 0:00:44] B92: Sicilian Najdorf: 6 Be2.} Qc7 {[%emt 0:03:11]} 10. a4 {[%emt 0:00:29]} b6 {[%emt 0:00:22]} (10... h6 $5 {[%cal Rh6g5]} 11. Be3 Nb6 $11) 11. Nd2 {[%emt 0:03:34] White is slightly better.} (11. Nd5 Nxd5 12. exd5 (12. Qxd5 Bb7 $15) 12... e4 13. Bxe7 exf3 $11) 11... Bb7 {[%emt 0:01:41]} 12. f3 {[%emt 0:03:01]} (12. Nc4 $14) 12... O-O $11 {[%emt 0:04:11]} 13. Nc4 {[%emt 0:01:24] [#]} b5 $146 {[%emt 0:19:39]} ({Predecessor:} 13... h6 14. Bh4 Rfe8 15. Bf2 Rac8 16. Ne3 Bf8 17. Bc4 Qb8 18. Qe2 Nc5 19. Rfd1 Ne6 20. Bxa6 {1-0 (57) Salinas Herrera,P (2514)-Potapova,M (2270) Chess.com INT 2020}) 14. axb5 {[%emt 0:06:56]} axb5 {[%emt 0:00:12]} 15. Rxa8 {[%emt 0:00:03]} ({Not} 15. Nxb5 $2 Qc5+ 16. Be3 (16. Ne3 $2 Rxa1 17. Qxa1 Nxe4 $19) 16... Qxb5 $19) 15... Rxa8 {[%emt 0:00:16]} 16. Ne3 {[%emt 0:06:19]} b4 {[%emt 0:00:24]} 17. Nb5 {[%emt 0:01:28]} Qb6 {[%emt 0:01:04][%cal Of6e4] [#] And now ...Nxe4! would win.} 18. Kh1 $1 {[%emt 0:01:00]} Ba6 $1 {[%emt 0:15:48]} 19. Nf5 {[%emt 0:03:12]} Bf8 {[%emt 0:00:09]} 20. Be3 {[%emt 0:00:17]} Qc6 {[%emt 0:01:05]} 21. c4 {[%emt 0:05:30]} bxc3 $1 {[%emt 0:04:25]} 22. Nxc3 {[%emt 0:01:12]} Rb8 {[%emt 0:00:41]} 23. Bxa6 {[%emt 0:09:00]} Qxa6 {[%emt 0:00:07]} 24. Rf2 {[%emt 0:00:02][%cal Bf1f2,Bf2d2,Bd2d6][%mdl 32]} Rb4 {[%emt 0:13:04]} 25. Rd2 {[%emt 0:01:49][%cal Rf5d6]} Qb7 {[%emt 0:00:36]} 26. Nxd6 {[%emt 0:19:59]} Bxd6 {[%emt 0:01:20]} 27. Rxd6 {[%emt 0:00:14] Strongly threatening Nd5.} Rxb2 {[%emt 0:00:10]} 28. g4 {[%emt 0:00:10]} h6 {[%emt 0:18:21]} 29. h4 {[%emt 0:00:10]} Qc7 {[%emt 0:05:23]} 30. Na4 {[%emt 0:01:25]} Rb1 {[%emt 0:01:00]} 31. Qxb1 {[%emt 0:03:24]} Qxd6 {[%emt 0:03:57]} 32. Qb3 {[%emt 0:00:59] Against Qa3} Qa6 {[%emt 0:01:15] aiming for ...Qf1+.} 33. Kg2 {[%emt 0:00:04] Prevents Qf1+.} Qe2+ {[%emt 0:00:40]} 34. Bf2 {[%emt 0:00:05]} Nf8 {[%emt 0:01:23]} 35. Qb2 {[%emt 0:02:57]} Qd1 {[%emt 0:00:48] ...Ne6 is the strong threat.} 36. Nc3 {[%emt 0:03:53]} Qd3 {[%emt 0:00:06]} 37. h5 {[%emt 0:00:22] Prevents Ng6.} Kh7 {[%emt 0:01:31]} 38. Qb8 {[%emt 0:00:59]} N6d7 {[%emt 0:00:30]} 39. Qc8 {[%emt 0:00:36]} Ne6 {[%emt 0:01:47] ( -> ...Nf4+)} 40. Nd5 {[%emt 0:00:04]} Nf6 {[%emt 0:00:53]} 41. Ne3 $1 {[%emt 0:37:21]} ({Don't go for} 41. Nxf6+ $2 gxf6 42. g5 hxg5 $19) 41... Qb1 {[%emt 0:08:20]} 42. Bg3 {[%emt 0:00:00] [#]} (42. Qc2 $11 Nf4+ 43. Kh2) 42... Qd3 {[%emt 0:05:27]} (42... Nxe4 $1 $15 43. Qc2 (43. fxe4 $2 Qxe4+ 44. Kh2 Qxe3 $19) 43... Qxc2+ 44. Nxc2 Nxg3 45. Kxg3 g6 46. hxg6+ fxg6) 43. Bf2 {[%emt 0:00:00]} Qd2 {[%emt 0:03:24]} 44. Qc2 {[%emt 0:00:00]} Nf4+ {[%emt 0:00:08]} 45. Kf1 {[%emt 0:00:00]} Qa5 {[%emt 0:03:36]} 46. Bg3 {[%emt 0:00:00]} Qa1+ {[%emt 0:01:41]} 47. Kf2 {[%emt 0:00:00]} Ne6 {[%emt 0:07:35]} 48. Nc4 {[%emt 0:00:00]} Qd4+ {[%emt 0:00:25]} 49. Kg2 {[%emt 0:00:00]} Nd7 {[%emt 0:00:52]} 50. Bf2 {[%emt 0:00:15]} Nf4+ {[%emt 0:00:12]} 51. Kh2 $1 {[%emt 0:00:03]} Qa1 {[%emt 0:00:29] Hoping for ...Qf1.} 52. Bg3 {[%emt 0:00:16]} Qf1 {[%emt 0:01:58] White must now prevent ...Qh3+.} 53. Bxf4 {[%emt 0:01:30]} exf4 {[%emt 0:00:04]} 54. e5+ {[%emt 0:00:02]} Kg8 {[%emt 0:00:13]} 55. Qe4 {[%emt 0:07:14]} (55. e6 $11 fxe6 56. Qe4) 55... Qf2+ $17 {[%emt 0:00:21]} 56. Kh1 {[%emt 0:00:02]} Qf1+ {[%emt 0:02:08] Weighted Error Value: White=0.11 (very precise) /Black=0.06 (flawless)} ({Black should try} 56... Nc5 $17 57. Qa8+ Kh7) 1/2-1/2

[Event "Czech Championship 2022"]
[Site "Usti nad Labem"]
[Date "2022.05.18"]
[Round "5.17"]
[White "Ocelak, Jakub"]
[Black "Jun, Rudolf"]
[Result "1/2-1/2"]
[ECO "E16"]
[WhiteElo "2060"]
[BlackElo "2183"]
[Annotator "TA"]
[PlyCount "45"]
[EventDate "2022.05.12"]
[EventType "swiss"]
[EventCountry "CZE"]
[SourceTitle "playchess.com"]
[Source "ChessBase"]
[SourceQuality "1"]
[TimeControl "40/5400+30:1800+30"]

{[%evp 13,22,27,22,0,14,10,16,0,7,0,18]} 1. d4 {[%emt 0:00:12]} Nf6 {[%emt 0:00:19]} 2. c4 {[%emt 0:00:48]} e6 {[%emt 0:00:18]} 3. Nf3 {[%emt 0:00:05]} b6 {[%emt 0:00:23]} 4. g3 {[%emt 0:00:04]} Bb7 {[%emt 0:00:10]} 5. Bg2 {[%emt 0:00:04]} Bb4+ {[%emt 0:03:14]} 6. Bd2 {[%emt 0:01:33]} Be7 {[%emt 0:02:51]} 7. Nc3 $1 {[%emt 0:02:46] 7.Nc3 scores better than 7.0-0.} O-O {[%emt 0:00:29]} 8. Bf4 {[%emt 0:12:45] The position is equal. E17: Queen's Indian: 4 g3 Bb7 5 Bg2 Be7.} Nh5 {[%emt 0:03:55]} 9. Bc1 {[%emt 0:02:14]} Nf6 {[%emt 0:01:55]} 10. Bf4 {[%emt 0:02:27]} Nh5 {[%emt 0:03:25]} 11. Bc1 {[%emt 0:01:20]} Nf6 {[%emt 0:13:17] [#] Not much happened in this game.  Weighted Error Value: White=0.10 (very precise) /Black=0.03 (flawless)} {Predecessor:} 12. Qc2 $146 c6 13. e4 d5 14. e5 Nfd7 15. h4 Na6 16. Ng5 g6 17. cxd5 Nb4 18. Qd2 cxd5 19. a3 Nc6 20. Nf3 Re8 21. h5 g5 22. h6 Na5 23. Nxg5 {1-0 (46) Kantor,G (2575)-Korobov,A (2699) Warsaw 2021} 1/2-1/2